bitfinex-derivatives/quotes_ETHF0:USTF0_20250110
["timestamp","ask_amount","ask_price","bid_price","bid_amount"]
[1736494469140,2.27492292,3290.6,3290.1,3.2078]
[1736494469340,1.37196828,3290.5,3290.1,3.2078]
[1736494469550,0.30393,3290.4,3290.1,3.2078]
[1736494469946,1.3216,3290.5,3290.1,3.2078]
[1736494470145,0.30393,3290.4,3290.1,3.2078]
[1736494470648,1.3216,3290.5,3290.1,3.2078]
[1736494470951,0.30393,3290.4,3290.1,3.2078]
[1736494471856,1.3216,3290.5,3290.1,3.2078]
[1736494472451,0.30392,3290.4,3290.1,3.2078]
[1736494472649,0.30394,3290.3,3290.1,3.2078]
[1736494473552,0.30394,3290.3,3289.7,0.4746]
[1736494473553,3.58292292,3290.2,3289.6,3.2078]
[1736494473750,0.30398,3289.8,3289.3,0.30403]
[1736494473950,0.30397,3289.9,3289.4,0.30401]
[1736494474155,0.30397,3289.9,3289.4,41.10401]
[1736494474554,3.51176,3290.0,3289.5,0.304]
[1736494474744,0.30398,3289.9,3289.4,44.31181]
[1736494474950,0.30398,3289.9,3289.4,44.0078]
[1736494475150,3.2078,3290.0,3289.4,44.0078]
[1736494475350,2.27492292,3289.8,3289.4,44.0078]
[1736494475558,0.30401,3289.5,3289.4,44.0078]
[1736494475859,0.304,3289.6,3289.4,3.2078]
[1736494478559,0.4526,3289.7,3289.4,3.2078]
[1736494478859,3.2078,3289.5,3288.8,44.0078]
[1736494479056,0.30403,3289.3,3288.8,44.31187]
[1736494479255,1.308,3289.4,3288.8,44.0078]
[1736494479850,3.2078,3289.9,3289.7,0.30398]
[1736494480050,3.2078,3289.9,3289.8,0.30398]
[1736494480558,1.308,3290.2,3290.0,0.30396]
[1736494480752,1.308,3290.2,3290.1,0.927]
[1736494483862,3.58292292,3290.2,3289.6,3.2078]
[1736494484156,0.30396,3290.0,3289.6,3.2078]
[1736494484361,1.308,3290.2,3289.6,3.2078]
[1736494484556,1.308,3290.2,3290.0,0.30395]
[1736494484758,1.308,3290.2,3290.1,0.8706]
[1736494485456,0.8827,3290.8,3290.3,0.30393]
[1736494485457,0.4419,3290.8,3290.3,0.30393]
[1736494485663,0.30386,3291.2,3290.6,0.3039]
[1736494485855,0.05036278,3291.1,3290.6,0.30391]
[1736494486564,0.35423278,3291.1,3290.6,0.30391]
[1736494486767,0.30387,3291.0,3290.5,3.51171]
[1736494487362,0.30387,3291.0,3290.6,0.30391]
[1736494487563,0.30387,3291.0,3290.5,3.51171]
[1736494488265,0.30386,3291.1,3290.6,0.3039]
[1736494488658,0.30387,3291.0,3290.6,0.3039]
[1736494488965,0.30387,3291.0,3290.5,3.51171]
[1736494490169,0.30387,3291.0,3290.5,0.30391]
[1736494490374,0.30388,3290.9,3290.5,3.2078]
[1736494490667,0.3039,3290.7,3290.5,3.2078]
[1736494491262,2.27492292,3290.6,3290.1,0.8706]
[1736494491565,0.30394,3290.3,3290.1,0.8706]
[1736494491763,0.30393,3290.4,3290.1,0.8706]
[1736494491971,0.30394,3290.3,3290.1,0.8706]
[1736494492267,0.30394,3290.2,3290.1,0.8706]
[1736494492467,0.30394,3290.2,3290.1,0.4324]
[1736494493867,1.61194,3290.3,3290.1,0.4324]
[1736494494062,1.308,3290.4,3290.1,0.4324]
[1736494494266,0.30394,3290.2,3290.1,0.4324]
[1736494494466,0.30393,3290.3,3290.1,0.4324]
[1736494495066,3.2078,3290.7,3290.1,3.6402]
[1736494495575,1.87422575,3291.1,3290.5,3.2078]
[1736494495774,2.17808575,3291.1,3290.6,0.7374]
[1736494495976,3.2078,3291.6,3290.6,0.4335]
[1736494496277,3.2078,3291.6,3290.9,3.2078]
[1736494496764,3.2078,3291.6,3291.1,0.30385]
[1736494497571,3.51162,3291.6,3291.1,0.30385]
[1736494499275,3.2078,3291.6,3291.1,0.30385]
[1736494499479,3.51161,3291.6,3291.1,0.30386]
[1736494500479,3.2078,3291.6,3291.0,0.4573]
[1736494500679,3.51162,3291.6,3291.0,0.4573]
[1736494500874,3.2078,3291.6,3291.0,0.4573]
[1736494501082,3.2078,3291.6,3291.2,0.30384]
[1736494501274,3.2078,3291.6,3291.0,0.4573]
[1736494501478,1.293,3292.1,3291.7,0.3038]
[1736494501678,0.05034712,3292.0,3291.5,0.30382]
[1736494501976,0.30377,3292.1,3291.5,0.74402]
[1736494503178,0.30377,3292.1,3291.6,0.30381]
[1736494503381,4.5008,3292.2,3291.5,0.4402]
[1736494503576,0.35411478,3292.1,3291.5,0.74402]
[1736494503777,0.30377,3292.1,3291.5,0.74402]
[1736494504176,0.30377,3292.1,3291.5,0.4402]
[1736494504375,4.5008,3292.2,3291.6,0.30381]
[1736494504576,0.30377,3292.1,3291.6,0.30381]
[1736494505077,4.5008,3292.2,3291.5,0.4402]
[1736494505078,3.2078,3292.2,3291.5,0.4402]
[1736494505379,3.2078,3292.2,3292.0,0.30378]
[1736494505580,3.2078,3292.2,3291.5,0.4402]
[1736494506174,3.2078,3292.2,3291.6,0.30381]
[1736494506381,3.2078,3292.2,3291.9,0.30379]
[1736494506581,3.2078,3292.2,3291.8,0.30379]
[1736494507180,3.2078,3292.2,3291.6,0.4687]
[1736494507373,3.2078,3292.2,3291.8,0.30379]
[1736494507781,3.2078,3292.2,3291.6,0.4687]
[1736494507985,3.2078,3292.2,3291.8,0.30379]
[1736494508485,1.293,3292.6,3292.1,0.30377]
[1736494508681,3.2078,3293.1,3292.2,3.2078]
[1736494508880,0.30366,3293.3,3292.8,0.3037]
[1736494509181,1.292,3293.4,3292.9,0.30369]
[1736494509382,1.59565,3293.4,3292.8,0.3037]
[1736494509579,0.30366,3293.3,3292.7,0.30371]
[1736494509886,0.30367,3293.2,3292.6,3.51152]
[1736494510181,0.30369,3293.0,3292.6,3.2078]
[1736494510378,0.3037,3292.9,3292.6,3.2078]
[1736494510884,0.3037,3292.8,3292.6,3.2078]
[1736494511087,0.30368,3293.0,3292.6,3.2078]
[1736494511278,0.3037,3292.9,3292.6,3.2078]
[1736494511777,0.30369,3293.0,3292.6,3.2078]
[1736494513088,4.4998,3293.1,3292.6,3.2078]
[1736494513287,3.2078,3293.1,3292.6,3.2078]
[1736494513486,0.30369,3293.0,3292.6,3.2078]
[1736494514189,3.2078,3293.1,3292.6,3.2078]
[1736494514486,0.30369,3293.0,3292.6,3.2078]
[1736494514690,3.2078,3293.1,3292.6,3.2078]
[1736494514884,3.51148,3293.1,3292.6,3.51152]
[1736494515087,3.2078,3293.1,3292.8,0.3037]
[1736494515282,0.4406,3293.5,3293.1,0.30367]
[1736494515587,0.74424,3293.5,3292.6,3.2078]
[1736494515887,0.4406,3293.5,3293.0,0.30368]
[1736494516087,0.4406,3293.5,3293.1,0.8737]
[1736494516288,0.74424,3293.5,3293.1,0.8737]
[1736494516484,0.30365,3293.4,3293.1,0.8737]
[1736494517089,0.4406,3293.5,3293.1,0.8737]
[1736494517289,3.2078,3293.6,3293.1,0.8737]
[1736494517491,3.2078,3294.2,3293.6,0.30363]
[1736494517685,0.75874,3295.1,3294.0,0.30359]
[1736494517686,3.51134,3294.6,3294.0,0.30359]
[1736494517878,3.2078,3294.6,3294.1,41.55918]
[1736494518082,3.2078,3294.6,3294.1,41.2556]
[1736494518282,3.51134,3294.6,3294.1,41.2556]
[1736494518486,0.30355,3294.5,3294.1,41.2556]
[1736494519488,0.30358,3294.2,3293.7,0.4314]
[1736494519689,0.3036,3294.0,3293.7,0.4314]
[1736494520286,0.30358,3294.1,3293.7,0.4314]
[1736494520493,1.87113571,3294.2,3293.7,0.4314]
[1736494520790,0.3036,3294.0,3293.7,0.4314]
[1736494521988,1.87113571,3294.2,3293.1,0.4556]
[1736494521989,1.87113571,3293.9,3293.1,0.4556]
[1736494522196,1.87113571,3293.6,3292.9,3.2078]
[1736494522490,0.30368,3293.0,3292.9,3.2078]
[1736494522985,0.30368,3293.0,3292.7,0.4737]
[1736494522986,5.07893571,3293.3,3292.7,0.4737]
[1736494523186,0.30369,3293.0,3292.7,0.4737]
[1736494523901,0.3037,3292.9,3292.7,0.4737]
[1736494524190,0.30369,3292.9,3292.7,0.4737]
[1736494524393,0.4771,3293.2,3292.7,0.4737]
[1736494524587,1.292,3293.8,3292.9,5.07893571]
[1736494524791,5.53193571,3293.9,3293.3,3.2078]
[1736494524792,0.453,3293.9,3293.3,3.2078]
[1736494524997,0.30361,3293.9,3293.5,0.30364]
[1736494525587,1.292,3294.1,3293.4,0.9038]
[1736494525788,0.30363,3293.7,3293.4,0.4455]
[1736494526088,0.30361,3293.8,3293.4,0.4455]
[1736494526293,0.30363,3293.7,3293.4,0.4455]
[1736494526493,0.30363,3293.6,3293.4,0.4455]
[1736494526795,0.30361,3293.8,3293.3,3.2078]
[1736494526982,0.30361,3293.8,3293.4,0.4455]
[1736494527190,0.30363,3293.7,3293.4,0.4455]
[1736494527390,0.30363,3293.6,3293.4,0.4455]
[1736494527899,0.30365,3293.4,3293.3,3.2078]
[1736494528090,2.26687651,3293.7,3293.3,3.2078]
[1736494528290,0.4389,3293.6,3292.7,0.4455]
[1736494528693,0.30367,3293.2,3292.7,0.74921]
[1736494529096,0.30366,3293.3,3292.8,0.3037]
[1736494529299,0.30365,3293.4,3292.9,0.30369]
[1736494529597,0.30367,3293.2,3292.7,0.4455]
[1736494529786,0.30367,3293.2,3292.8,0.3037]
[1736494529990,0.30365,3293.4,3292.7,0.4455]
[1736494530196,0.30364,3293.5,3293.0,3.2078]
[1736494530390,2.26687651,3293.7,3293.0,3.2078]
[1736494530692,0.8888,3294.0,3293.0,3.2078]
[1736494530997,0.00187488,3293.7,3293.0,3.2078]
[1736494531296,3.2078,3293.3,3292.7,0.4455]
[1736494531491,0.30369,3293.0,3292.7,0.4455]
[1736494531693,0.30368,3293.1,3292.7,0.4455]
[1736494531885,0.465,3293.2,3292.9,0.30369]
[1736494532192,0.465,3293.2,3292.7,0.4455]
[1736494532193,0.76867,3293.2,3292.8,0.3037]
[1736494532595,0.30368,3293.1,3292.7,0.4455]
[1736494532895,0.465,3293.2,3292.7,0.4455]
[1736494533092,0.30367,3293.3,3292.8,0.3037]
[1736494533400,0.30366,3293.4,3292.8,0.3037]
[1736494534093,0.30366,3293.4,3292.9,0.30369]
[1736494534294,2.1706,3293.6,3292.7,0.4455]
[1736494534498,0.30364,3293.5,3293.0,3.51148]
[1736494534700,2.1706,3293.6,3293.0,3.2078]
[1736494534896,0.30366,3293.3,3293.0,3.2078]
[1736494535096,0.30366,3293.3,3292.8,0.3037]
[1736494535495,2.1706,3293.6,3292.8,0.3037]
[1736494535695,2.1706,3293.6,3292.7,0.4455]
[1736494535897,0.30366,3293.3,3292.9,0.30369]
[1736494537103,2.1706,3293.6,3292.7,0.4455]
[1736494537104,0.4395,3293.6,3293.0,3.2078]
[1736494537305,0.4395,3293.6,3293.4,3.51145]
[1736494538000,0.00187488,3293.7,3293.5,0.30364]
[1736494538398,0.00187488,3293.7,3293.5,0.73954]
[1736494538604,0.00187488,3293.7,3293.6,40.8]
[1736494539305,0.00187488,3293.7,3293.5,0.4359]
[1736494539504,0.00187488,3293.7,3293.5,0.73953]
[1736494539802,0.30549488,3293.7,3293.5,0.8734]
[1736494540102,0.30364,3293.5,3293.4,3.2078]
[1736494540904,2.26875139,3293.7,3293.4,3.2078]
[1736494541105,0.30364,3293.6,3293.1,0.30367]
[1736494541296,0.30363,3293.6,3293.1,0.30367]
[1736494541605,2.26875139,3293.7,3293.0,0.30368]
[1736494541606,5.47655139,3293.7,3293.0,0.30368]
[1736494541806,0.4687,3293.5,3293.0,0.30368]
[1736494542006,0.30366,3293.4,3292.9,3.51149]
[1736494542212,0.4687,3293.5,3292.9,3.2078]
[1736494542511,0.77234,3293.5,3293.0,0.30368]
[1736494543609,0.30365,3293.4,3293.0,0.30368]
[1736494543907,0.77235,3293.5,3293.0,0.30368]
[1736494544111,0.4687,3293.5,3292.9,3.2078]
[1736494544404,0.4687,3293.5,3293.0,0.30368]
[1736494544704,0.30365,3293.4,3293.0,0.30368]
[1736494545406,0.4687,3293.5,3292.9,3.2078]
[1736494545800,0.4442,3293.4,3292.9,3.2078]
[1736494546112,0.30368,3293.0,3292.9,3.2078]
[1736494548113,0.30368,3293.0,3292.7,0.4446]
[1736494548405,0.30368,3293.0,3292.6,3.2078]
[1736494548406,1.87176443,3293.0,3292.6,3.2078]
[1736494548605,0.30371,3292.7,3292.6,3.2078]
[1736494549304,1.87176443,3293.0,3292.6,3.2078]
[1736494549698,0.30369,3293.0,3292.6,3.51152]
[1736494550603,5.55066443,3293.3,3292.6,3.2078]
[1736494550808,0.30371,3292.8,3292.6,3.2078]
[1736494552807,0.30375,3292.3,3291.8,0.30379]
[1736494553004,0.30375,3292.3,3291.8,0.4555]
[1736494553206,0.30375,3292.3,3291.9,40.8]
[1736494553512,0.30376,3292.2,3291.9,40.8]
[1736494553808,0.30376,3292.3,3291.8,0.75929]
[1736494554405,0.30376,3292.3,3291.8,41.55929]
[1736494555707,0.4306,3292.6,3292.0,3.2078]
[1736494555912,0.3037,3292.9,3292.4,3.51153]
[1736494556207,0.30368,3293.0,3292.5,1.19113]
[1736494557109,0.30368,3293.1,3292.6,0.30372]
[1736494557414,3.11019443,3293.6,3293.1,0.30367]
[1736494557616,3.11019443,3293.6,3293.2,0.459]
[1736494557919,0.30365,3293.5,3293.2,0.459]
[1736494558206,2.80656443,3293.6,3293.2,0.459]
[1736494558411,0.35396164,3293.5,3293.2,0.459]
[1736494558611,0.30364,3293.5,3293.2,0.459]
[1736494559407,2.80656443,3293.6,3293.2,0.459]
[1736494559607,1.56264,3293.5,3293.2,0.459]
[1736494559910,1.87176443,3293.3,3292.9,40.8]
[1736494560113,1.87176443,3293.3,3292.6,0.459]
[1736494560114,0.30368,3293.1,3292.6,0.459]
[1736494560409,3.2078,3293.2,3292.6,0.459]
[1736494560410,2.17545443,3293.0,3292.6,0.459]
[1736494560806,0.3037,3292.9,3292.6,0.459]
[1736494561012,1.87176443,3292.7,3292.6,0.459]
[1736494562014,2.17547443,3292.7,3292.6,0.459]
[1736494562514,3.43447443,3292.7,3292.6,0.459]
[1736494563910,3.13076443,3292.7,3292.6,0.459]
[1736494564416,1.259,3292.7,3292.6,0.76272]
[1736494564818,1.259,3292.7,3292.6,0.459]
[1736494565018,1.259,3292.7,3292.4,3.2078]
[1736494565019,3.13076443,3292.7,3292.4,3.2078]
[1736494565216,0.30373,3292.5,3292.4,3.2078]
[1736494565709,0.9264,3292.6,3292.4,3.2078]
[1736494565710,3.10189443,3292.6,3292.4,3.2078]
[1736494565918,2.63739443,3292.6,3292.4,3.2078]
[1736494566119,2.33366443,3292.6,3292.4,3.2078]
[1736494566315,2.63738443,3292.6,3292.4,3.2078]
[1736494568214,2.63738443,3292.6,3291.8,0.9251]
[1736494568215,3.2078,3292.5,3291.8,0.9251]
[1736494568414,1.87176443,3292.2,3291.8,0.9251]
[1736494568614,1.87176443,3291.9,3291.6,3.2078]
[1736494568810,1.87176443,3291.9,3291.4,0.4334]
[1736494568811,0.30382,3291.5,3291.4,0.4334]
[1736494569016,3.13076443,3291.5,3291.2,40.8]
[1736494569223,3.13076443,3291.5,3291.2,41.2334]
[1736494569615,1.259,3291.5,3291.2,41.2334]
[1736494569823,1.259,3292.0,3291.4,3.2078]
[1736494570119,1.259,3292.0,3291.2,0.4334]
[1736494570120,1.259,3292.0,3291.9,0.30379]
[1736494570518,1.259,3292.0,3291.9,1.19719]
[1736494571214,1.259,3292.0,3291.9,41.99719]
[1736494571414,3.13076443,3292.4,3291.9,41.6934]
[1736494571912,3.43450443,3292.4,3292.0,0.30377]
[1736494572112,3.13076443,3292.4,3291.9,41.6934]
[1736494572325,0.30376,3292.2,3291.9,0.8934]
[1736494572516,0.30377,3292.1,3291.9,0.8934]
[1736494573120,2.17552443,3292.2,3291.9,0.8934]
[1736494573916,1.87176443,3292.2,3291.9,0.8934]
[1736494574123,0.30379,3291.9,3291.8,3.2078]
[1736494574321,0.30379,3291.9,3291.4,3.2078]
[1736494574322,0.30381,3291.7,3291.4,3.2078]
[1736494574523,1.259,3291.6,3291.4,3.2078]
[1736494574722,1.259,3291.6,3291.1,0.8934]
[1736494575226,1.259,3291.6,3291.3,0.30384]
[1736494575429,1.56282,3291.6,3291.2,0.30385]
[1736494576025,0.30379,3291.9,3291.4,0.30382]
[1736494576232,0.30379,3291.9,3291.5,0.30382]
[1736494576524,1.259,3292.0,3291.4,3.2078]
[1736494576727,1.259,3292.0,3291.7,0.3038]
[1736494576929,1.259,3292.0,3291.8,0.4729]
[1736494577122,1.87176443,3291.9,3291.4,3.2078]
[1736494577322,0.30382,3291.6,3291.4,3.2078]
[1736494577730,0.30382,3291.6,3291.2,0.4729]
[1736494577731,1.87176443,3291.6,3291.2,0.4729]
[1736494577917,0.4517,3291.8,3291.2,0.4729]
[1736494577918,1.87176443,3291.3,3291.2,0.4729]
[1736494578423,0.30384,3291.3,3291.2,0.4729]
[1736494578623,5.07956443,3291.6,3291.0,40.8]
[1736494578830,0.30383,3291.5,3291.0,41.10386]
[1736494579025,0.30384,3291.4,3291.0,40.8]
[1736494580026,3.2078,3291.7,3291.0,40.8]
[1736494580230,0.30383,3291.4,3291.0,41.10386]
[1736494580431,1.259,3291.6,3291.0,40.8]
[1736494580632,0.30383,3291.4,3291.0,40.8]
[1736494580833,1.259,3291.6,3291.0,41.10387]
[1736494581036,0.30384,3291.4,3291.0,40.8]
[1736494582234,1.259,3291.6,3291.0,40.8]
[1736494582435,1.26,3291.8,3291.2,3.2078]
[1736494582734,3.43554443,3292.0,3291.5,0.30382]
[1736494582935,1.26,3291.9,3291.6,0.4631]
[1736494583129,1.26,3291.9,3291.6,0.9024]
[1736494583330,1.26,3292.3,3292.0,0.30381]
[1736494583531,1.26,3292.3,3291.8,3.2078]
[1736494583532,1.26,3292.4,3291.9,0.30382]
[1736494584031,0.76936,3292.5,3291.9,0.30381]
[1736494584338,2.34556443,3292.6,3291.8,3.2078]
[1736494584532,1.26,3292.8,3292.2,3.2078]
[1736494584831,3.2078,3292.9,3292.5,0.30376]
[1736494585031,3.51153,3292.9,3292.4,0.30377]
[1736494585232,3.2078,3292.9,3292.4,0.30376]
[1736494585534,3.51153,3292.9,3292.4,0.30376]
[1736494585831,2.17551443,3292.6,3292.3,41.7121]
[1736494586137,2.17552443,3292.6,3292.3,41.7121]
[1736494586436,0.30376,3292.5,3292.3,41.7121]
[1736494586625,1.87176443,3292.6,3292.3,41.7121]
[1736494586829,0.30376,3292.5,3292.3,41.7121]
[1736494587030,1.87176443,3292.6,3292.3,0.9121]
[1736494587230,2.17552443,3292.6,3292.3,0.9121]
[1736494587438,1.87176443,3292.7,3292.3,0.9121]
[1736494587638,0.4712,3292.6,3292.3,0.9121]
[1736494587933,5.07956443,3293.3,3292.3,0.9121]
[1736494588135,3.2078,3293.3,3292.6,3.2078]
[1736494588641,3.2078,3293.3,3292.4,0.4593]
[1736494588642,0.00187488,3293.7,3293.1,0.30371]
[1736494588849,0.00187488,3293.7,3293.4,3.2078]
[1736494589052,0.00187488,3293.7,3293.6,0.30366]
[1736494589345,3.2078,3294.6,3293.4,10.47394521]
[1736494589541,3.2078,3294.6,3294.1,0.30361]
[1736494589735,3.2078,3294.6,3294.2,41.2533]
[1736494589940,5.47394521,3294.6,3294.2,41.2533]
[1736494590244,1.256,3294.9,3294.2,41.5569]
[1736494590245,0.30355,3294.8,3294.2,41.5569]
[1736494590543,2.26614521,3294.6,3294.2,41.2533]
[1736494590744,4.4638,3294.7,3294.2,41.2533]
[1736494590950,3.51136,3294.7,3294.2,41.2533]
[1736494591140,1.256,3294.9,3294.3,0.30359]
[1736494591344,0.30356,3294.8,3294.2,41.2533]
[1736494591641,1.256,3294.9,3294.2,41.2533]
[1736494591840,2.26614521,3295.0,3294.2,41.2533]
[1736494592148,0.30355,3294.8,3294.2,41.2533]
[1736494592446,3.52214521,3295.0,3294.2,0.4533]
[1736494592745,3.82568521,3295.0,3294.3,0.74039]
[1736494592945,3.52214521,3295.0,3294.3,0.4368]
[1736494593147,0.30355,3294.9,3294.3,0.4368]
[1736494593447,3.52214521,3295.0,3294.3,3.6446]
[1736494593650,0.30354,3294.9,3294.3,3.6446]
[1736494593846,3.52214521,3295.0,3294.3,3.6446]
[1736494594048,2.26614521,3294.6,3293.9,3.2078]
[1736494594245,2.26614521,3294.6,3294.0,0.30362]
[1736494594545,2.26614521,3294.6,3294.2,0.3036]
[1736494594947,2.26614521,3294.6,3293.9,3.2078]
[1736494594948,2.56968521,3295.0,3294.3,3.95139]
[1736494595153,1.55955,3294.9,3294.3,3.6478]
[1736494595847,3.2078,3294.7,3294.3,0.44]
[1736494596750,3.51136,3294.7,3294.3,0.44]
[1736494596944,0.30356,3294.8,3294.3,0.44]
[1736494597150,1.256,3294.9,3294.3,0.44]
[1736494597343,3.51137,3294.7,3294.3,0.8733]
[1736494597544,0.30358,3294.6,3293.9,3.51143]
[1736494597741,0.30358,3294.5,3293.9,3.51143]
[1736494598144,0.30358,3294.5,3294.0,0.30362]
[1736494598450,1.256,3294.6,3294.0,0.30362]
[1736494598645,1.55957,3294.6,3294.1,0.30361]
[1736494599045,0.30362,3294.1,3293.9,3.2078]
[1736494599350,2.26614521,3294.2,3293.8,0.30364]
[1736494600149,2.56975521,3294.2,3293.7,3.51144]
[1736494600346,2.26614521,3294.2,3293.8,0.30363]
[1736494600753,2.26614521,3294.2,3293.7,3.2078]
[1736494601054,2.56975521,3294.2,3293.7,3.51144]
[1736494602054,2.26614521,3294.2,3293.7,3.2078]
[1736494602241,0.30364,3293.8,3293.7,3.2078]
[1736494602546,0.30364,3293.8,3293.6,40.8]
[1736494602547,0.30365,3293.7,3293.6,40.8]
[1736494602751,3.2078,3293.8,3293.1,3.2078]
[1736494603051,3.2078,3293.8,3293.2,0.9214]
[1736494603251,3.2078,3293.8,3293.3,40.8]
[1736494603457,2.26614521,3294.2,3293.3,40.8]
[1736494603744,0.30362,3294.1,3293.6,0.30365]
[1736494603946,2.26614521,3294.2,3293.3,40.8]
[1736494604251,2.26614521,3294.2,3293.8,0.30364]
[1736494604551,2.26614521,3294.2,3293.8,0.30363]
[1736494604950,0.30363,3294.0,3293.5,3.51146]
[1736494605652,0.30363,3294.0,3293.5,3.2078]
[1736494605853,0.30363,3294.0,3293.6,0.30366]
[1736494606756,3.2078,3294.3,3293.6,0.30365]
[1736494606951,0.30363,3294.0,3293.5,3.51146]
[1736494608154,0.30363,3294.0,3293.5,3.2078]
[1736494608355,0.30363,3294.0,3293.5,3.51146]
[1736494608759,0.30362,3294.1,3293.6,0.30366]
[1736494609864,0.30362,3294.0,3293.5,3.51146]
[1736494610256,1.256,3294.2,3293.5,3.2078]
[1736494610458,0.30363,3294.0,3293.5,3.51147]
[1736494610658,1.256,3294.2,3293.5,3.51147]
[1736494610860,0.30363,3294.0,3293.5,3.2078]
[1736494611063,0.30362,3294.1,3293.6,0.30366]
[1736494611957,0.30362,3294.1,3293.5,3.2078]
[1736494612160,3.43028262,3294.2,3293.7,0.30364]
[1736494612358,0.4615,3294.5,3293.8,1.87067262]
[1736494612565,0.4615,3294.5,3294.3,0.30359]
[1736494612764,0.4615,3294.5,3294.0,3.2078]
[1736494613060,0.4615,3294.5,3294.4,40.8]
[1736494613664,0.4615,3294.5,3294.2,0.3036]
[1736494614157,0.4615,3294.5,3294.3,40.8]
[1736494614360,2.34487262,3294.4,3293.7,0.30364]
[1736494614559,0.30361,3294.2,3293.7,0.30364]
[1736494614760,0.30361,3294.2,3293.8,0.30364]
[1736494615062,2.34487262,3294.4,3293.7,40.8]
[1736494615063,4.938,3294.4,3293.7,40.8]
[1736494615260,0.4742,3294.4,3293.7,40.8]
[1736494615464,0.4742,3294.4,3294.1,0.30361]
[1736494616163,0.4615,3294.5,3294.0,3.2078]
[1736494616362,0.4615,3294.5,3294.2,0.3036]
[1736494616562,0.4615,3294.5,3294.1,0.9158]
[1736494616764,0.4615,3294.5,3294.3,0.30359]
[1736494617063,1.7273,3294.7,3294.3,0.30359]
[1736494617255,4.76535,3294.8,3294.3,0.30359]
[1736494617453,3.51135,3294.8,3294.3,0.30359]
[1736494617657,3.51135,3294.8,3294.2,0.3036]
[1736494617658,4.4618,3294.8,3294.2,0.3036]
[1736494617866,4.76535,3294.8,3294.3,0.30359]
[1736494618063,4.4618,3294.8,3294.3,0.30359]
[1736494618257,4.4618,3294.8,3294.1,0.9158]
[1736494618258,3.2078,3295.3,3294.7,1.87067262]
[1736494618466,3.2078,3295.3,3294.8,0.4558]
[1736494618666,3.2078,3295.3,3295.1,0.30351]
[1736494618860,3.2078,3295.7,3295.3,0.3035]
[1736494619060,3.2078,3295.7,3295.2,40.8]
[1736494619367,5.07847262,3295.7,3295.2,40.8]
[1736494619666,5.38194262,3295.7,3295.2,40.8]
[1736494619864,6.33247262,3295.7,3295.2,40.8]
[1736494620159,5.07847262,3295.7,3295.3,0.3035]
[1736494620360,5.07847262,3295.7,3295.2,41.10351]
[1736494620767,5.07847262,3295.7,3295.2,40.8]
[1736494620954,0.30347,3295.6,3295.2,40.8]
[1736494621263,5.07847262,3295.7,3295.2,40.8]
[1736494621264,0.30349,3295.5,3295.2,40.8]
[1736494621568,1.254,3295.6,3294.8,4.1024]
[1736494622064,0.30348,3295.5,3294.8,4.1024]
[1736494622263,1.254,3295.6,3294.8,4.1024]
[1736494622566,0.30353,3295.0,3294.4,0.30358]
[1736494623063,5.07847262,3295.1,3294.2,40.8]
[1736494623262,5.99867262,3295.4,3294.4,1.87067262]
[1736494623568,1.254,3295.6,3295.0,0.30352]
[1736494623569,0.30348,3295.6,3295.0,0.30352]
[1736494623760,0.30348,3295.6,3294.9,0.30353]
[1736494623761,3.2078,3295.4,3294.9,0.30353]
[1736494624067,3.51129,3295.4,3294.9,0.30353]
[1736494624960,0.30351,3295.3,3294.5,0.30357]
[1736494625156,3.2078,3295.4,3294.8,0.30355]
[1736494625359,0.30351,3295.2,3294.8,0.30355]
[1736494625768,0.30351,3295.2,3294.5,0.30357]
[1736494625973,5.07847262,3295.0,3294.4,3.66]
[1736494626163,0.30356,3294.7,3294.4,3.66]
[1736494626666,0.4611,3294.9,3294.4,3.66]
[1736494626667,0.30355,3294.8,3294.4,3.66]
[1736494626864,0.30357,3294.5,3294.4,3.2078]
[1736494627169,0.30356,3294.7,3294.4,3.2078]
[1736494627363,0.4537,3294.8,3294.4,3.2078]
[1736494627564,0.30357,3294.6,3294.4,3.2078]
[1736494627766,0.30358,3294.5,3294.2,40.8]
[1736494627962,0.77088,3294.5,3294.2,40.8]
[1736494628163,0.4673,3294.5,3294.2,40.8]
[1736494628563,0.77087,3294.5,3294.2,40.8]
[1736494628764,0.4673,3294.5,3294.2,40.8]
[1736494628967,0.77088,3294.5,3294.2,40.8]
[1736494629263,3.6751,3294.5,3293.9,3.6502]
[1736494629471,4.9291,3294.5,3293.9,3.95383]
[1736494629770,1.87067262,3296.3,3294.4,40.8]
[1736494629966,0.05028668,3296.1,3295.6,3.2078]
[1736494630167,2.81367262,3296.3,3295.7,0.30346]
[1736494630466,3.15341595,3296.2,3295.6,3.51127]
[1736494630670,2.84999595,3296.2,3295.6,3.2078]
[1736494630863,3.2078,3295.9,3295.2,3.2078]
[1736494631170,1.254,3295.9,3295.6,3.2078]
[1736494631380,1.254,3295.9,3295.8,0.30345]
[1736494631667,2.84999595,3296.2,3296.1,0.30343]
[1736494631870,2.84999595,3296.2,3295.6,3.2078]
[1736494632063,2.84999595,3296.2,3295.8,0.30345]
[1736494632370,2.84999595,3296.2,3295.6,3.2078]
[1736494632667,2.84999595,3296.2,3295.8,0.30345]
[1736494633064,30.16844701,3307.8,3296.2,0.05]
[1736494633065,3.2078,3298.3,3296.2,0.05]
[1736494633270,3.51095,3299.1,3297.9,3.51106]
[1736494633466,14.28730718,3299.6,3298.0,1.06138]